fUST/lending_fUST_20260111
["ID","MTS","AMOUNT","RATE_DAILY","PERIOD"]
[401285517,1768105062777,854.19,7.469e-05,2]
[401285518,1768105063178,1067.74,8.003e-05,2]
[401285519,1768105063568,1281.28,8.536e-05,2]
[401285520,1768105101444,4598.45704557,8.246e-05,2]
[401285521,1768105138195,257.61,5.894e-05,2]
[401285522,1768105138753,515.21,6.429e-05,2]
[401285523,1768105139003,147.73295443,6.965e-05,2]
[401285524,1768105139026,625.08704557,6.965e-05,2]
[401285525,1768105139418,1030.43,7.501e-05,2]
[401285526,1768105139862,1288.03,8.037e-05,2]
[401285527,1768105140288,1545.64,8.572e-05,2]
[401285529,1768105204304,800.52,5e-05,2]
[401285530,1768105204853,800.52,5.5e-05,2]
[401285531,1768105205320,800.52,6e-05,2]
[401285532,1768105206029,800.52,6.5e-05,2]
[401285533,1768105206535,800.52,7.1e-05,2]
[401285534,1768105207135,800.52,7.6e-05,2]
[401285535,1768105207761,707.70295443,8.1e-05,2]
[401285536,1768105207783,92.81704557,8.1e-05,2]
[401285537,1768105208324,800.52,8.6e-05,2]
[401285538,1768105214605,257.15,6.584e-05,2]
[401285539,1768105214986,514.29,7.182e-05,2]
[401285540,1768105215384,771.44,7.781e-05,2]
[401285541,1768105215774,1028.59,8.379e-05,2]
[401285542,1768105216185,1285.74,8.978e-05,2]
[401285543,1768105276749,500.0,8.831e-05,2]
[401285544,1768105276916,500.0,8.968e-05,2]
[401285545,1768105283085,216.57112837,8.831e-05,2]
[401285546,1768105284001,500.0,8.831e-05,2]
[401285547,1768105284197,500.0,8.968e-05,2]
[401285548,1768105285546,500.0,8.831e-05,2]
[401285549,1768105285717,513.06755927,8.968e-05,2]
[401285550,1768105292649,313.32,6.74e-05,2]
[401285551,1768105293059,626.65,7.353e-05,2]
[401285552,1768105293461,939.97,7.965e-05,2]
[401285553,1768105293859,139.88426679,8.578e-05,2]
[401285554,1768105293884,1113.40573321,8.578e-05,2]
[401285555,1768105346960,8886.60426679,9.004e-05,2]
[401285556,1768105346984,10000.01,9.004e-05,2]
[401285557,1768105347009,10000.01,9.004e-05,2]
[401285558,1768105347032,10000.01,9.004e-05,2]
[401285559,1768105347056,10000.01,9.004e-05,2]
[401285560,1768105347079,10000.01,9.004e-05,2]
[401285561,1768105347103,10000.01,9.004e-05,2]
[401285562,1768105347126,10000.01,9.004e-05,2]
[401285563,1768105347150,10000.01,9.004e-05,2]
[401285564,1768105347174,10000.01,9.004e-05,2]
[401285565,1768105364638,214.0,0.00030137,120]
[401285566,1768105371589,583.38,7.171e-05,2]
[401285567,1768105371979,1166.76,7.823e-05,2]
[401285568,1768105381931,-166.95029715,8.475e-05,2]
[401285569,1768105383586,-302.97291674,8.475e-05,2]
[401285570,1768105385762,-317.80609975,8.475e-05,2]
[401285571,1768105389147,-473.27600768,8.475e-05,2]
[401285572,1768105394750,-479.57405048,8.475e-05,2]
[401285573,1768105405813,-300.0,8.102e-05,2]
[401285574,1768105421320,-9.5706282,8.475e-05,2]
[401285575,1768105437606,-300.0,9.003e-05,2]
[401285576,1768105442260,300.0,9.003e-05,2]
[401285577,1768105442715,300.0,9.003e-05,2]
[401285578,1768105451807,1510.43,6.698e-05,2]
[401285579,1768105452195,3020.85,7.307e-05,2]
[401285580,1768105452712,4268.73,7.916e-05,2]
[401285581,1768105452734,262.55,7.916e-05,2]
[401285582,1768105453115,6041.7,8.525e-05,2]
[401285583,1768105465621,-256.3218473,8.846e-05,2]
[401285584,1768105477629,-6523.45653973,9.004e-05,2]
[401285585,1768105477748,-10000.01,9.004e-05,2]
[401285586,1768105477959,-10000.01,9.004e-05,2]
[401285587,1768105478333,-10000.01,9.004e-05,2]
[401285588,1768105478455,-10000.01,9.004e-05,2]
[401285589,1768105478549,-10000.01,9.004e-05,2]
[401285590,1768105478664,-10000.01,9.004e-05,2]
[401285591,1768105478785,-10000.01,9.004e-05,2]
[401285592,1768105485654,-10000.01,9.004e-05,2]
[401285593,1768105485824,-10000.01,9.004e-05,2]
[401285594,1768105499366,-563.73503541,9.003e-05,2]
[401285595,1768105499394,-342.61398765,9.003e-05,2]
[401285596,1768105499424,-500.0,9.003e-05,2]
[401285597,1768105499454,-500.0,9.003e-05,2]
[401285598,1768105499483,-500.0,9.003e-05,2]
[401285599,1768105499510,-500.0,9.003e-05,2]
[401285600,1768105499537,-500.0,9.003e-05,2]
[401285601,1768105499564,-237.23717892,9.003e-05,2]
[401285602,1768105499592,-500.0,9.003e-05,2]
[401285603,1768105499618,-500.0,9.003e-05,2]
[401285604,1768105499646,-212.83759604,9.003e-05,2]
[401285605,1768105499800,-287.16240396,9.003e-05,2]
[401285606,1768105499834,-237.23717892,9.003e-05,2]
[401285607,1768105499861,-500.0,9.003e-05,2]
[401285608,1768105499889,-500.0,9.003e-05,2]
[401285609,1768105499916,-500.0,9.003e-05,2]
[401285610,1768105499943,-500.0,9.003e-05,2]
[401285611,1768105499972,-249.27944371,9.003e-05,2]
[401285612,1768105500000,-500.0,9.003e-05,2]
[401285613,1768105500027,-500.0,9.003e-05,2]
[401285614,1768105500056,-500.0,9.003e-05,2]
[401285615,1768105500085,-500.0,9.003e-05,2]
[401285616,1768105500114,-500.0,9.003e-05,2]
[401285617,1768105500171,-500.0,9.003e-05,2]
[401285618,1768105500201,-500.0,9.003e-05,2]
[401285619,1768105500230,-500.0,9.003e-05,2]
[401285620,1768105500261,-500.0,9.003e-05,2]
[401285621,1768105500293,-500.0,9.003e-05,2]
[401285622,1768105500323,-500.0,9.003e-05,2]
[401285623,1768105500354,-500.0,9.003e-05,2]
[401285624,1768105500384,-500.0,9.003e-05,2]
[401285625,1768105500412,-500.0,9.003e-05,2]
[401285626,1768105500441,-500.0,9.003e-05,2]
[401285627,1768105500683,-500.0,9.003e-05,2]
[401285628,1768105500714,-500.0,9.003e-05,2]
[401285629,1768105500742,-500.0,9.003e-05,2]
[401285630,1768105500773,-500.0,9.003e-05,2]
[401285631,1768105500801,-500.0,9.003e-05,2]
[401285632,1768105500829,-500.0,9.003e-05,2]
[401285633,1768105500859,-500.0,9.003e-05,2]
[401285634,1768105500887,-500.0,9.003e-05,2]
[401285635,1768105500916,-500.0,9.003e-05,2]
[401285636,1768105500946,-500.0,9.003e-05,2]
[401285637,1768105501204,-500.0,9.003e-05,2]
[401285638,1768105501236,-500.0,9.003e-05,2]
[401285639,1768105501267,-500.0,9.003e-05,2]
[401285640,1768105501297,-500.0,9.003e-05,2]
[401285641,1768105501327,-500.0,9.003e-05,2]
[401285642,1768105501357,-500.0,9.003e-05,2]
[401285643,1768105501388,-500.0,9.003e-05,2]
[401285644,1768105501420,-500.0,9.003e-05,2]
[401285645,1768105501451,-500.0,9.003e-05,2]
[401285646,1768105501483,-500.0,9.003e-05,2]
[401285647,1768105501646,-500.0,9.003e-05,2]
[401285648,1768105501676,-500.0,9.003e-05,2]
[401285649,1768105501708,-500.0,9.003e-05,2]
[401285650,1768105501737,-500.0,9.003e-05,2]
[401285651,1768105501766,-500.0,9.003e-05,2]
[401285652,1768105501795,-500.0,9.003e-05,2]
[401285653,1768105501824,-500.0,9.003e-05,2]
[401285654,1768105501852,-500.0,9.003e-05,2]
[401285655,1768105501880,-500.0,9.003e-05,2]
[401285656,1768105501908,-500.0,9.003e-05,2]
[401285657,1768105502045,-500.0,9.003e-05,2]
[401285658,1768105502074,-500.0,9.003e-05,2]
[401285659,1768105502698,1200.0,9.002e-05,2]
[401285660,1768105530308,2124.53,6.698e-05,2]
[401285661,1768105530722,4249.06,7.307e-05,2]
[401285662,1768105531126,426.42,7.916e-05,2]
[401285663,1768105531156,5947.18,7.916e-05,2]
[401285664,1768105531531,4052.83,8.525e-05,2]
[401285665,1768105531558,4445.3,8.525e-05,2]
[401285666,1768105532061,500.0,9.003e-05,2]
[401285667,1768105532099,500.0,9.003e-05,2]
[401285668,1768105532138,500.0,9.003e-05,2]
[401285669,1768105532178,500.0,9.003e-05,2]
[401285670,1768105532219,500.0,9.003e-05,2]
[401285671,1768105532258,500.0,9.003e-05,2]
[401285673,1768105532303,500.0,9.003e-05,2]
[401285674,1768105532343,500.0,9.003e-05,2]
[401285675,1768105532383,500.0,9.003e-05,2]
[401285676,1768105532420,500.0,9.003e-05,2]
[401285677,1768105532472,500.0,9.003e-05,2]
[401285678,1768105532512,54.71,9.003e-05,2]
[401285679,1768105532538,445.29,9.003e-05,2]
[401285680,1768105532576,500.0,9.003e-05,2]
[401285681,1768105532615,500.0,9.003e-05,2]
[401285682,1768105532662,500.0,9.003e-05,2]
[401285683,1768105532706,500.0,9.003e-05,2]
[401285684,1768105532743,500.0,9.003e-05,2]
[401285685,1768105532781,500.0,9.003e-05,2]
[401285686,1768105532820,500.0,9.003e-05,2]
[401285687,1768105532859,500.0,9.003e-05,2]
[401285688,1768105532905,500.0,9.003e-05,2]
[401285689,1768105532943,500.0,9.003e-05,2]
[401285690,1768105532993,500.0,9.003e-05,2]
[401285691,1768105533030,500.0,9.003e-05,2]
[401285692,1768105533071,357.70233798,9.003e-05,2]
[401285693,1768105542635,2018.6527,0.00030136,120]
[401285694,1768105572754,-300.0,9.003e-05,2]
[401285695,1768105572816,-4597.01766202,9.004e-05,2]
[401285696,1768105572891,-10000.01,9.004e-05,2]
[401285697,1768105573086,-10000.01,9.004e-05,2]
[401285698,1768105573403,-10000.01,9.004e-05,2]
[401285699,1768105573473,-10000.01,9.004e-05,2]
[401285700,1768105573708,-10000.01,9.004e-05,2]
[401285701,1768105573893,-10000.01,9.004e-05,2]
[401285702,1768105608500,2476.72,6.688e-05,2]
[401285703,1768105608900,4953.44,7.296e-05,2]
[401285704,1768105609305,2569.85,7.904e-05,2]
[401285705,1768105609331,4860.31,7.904e-05,2]
[401285707,1768105689819,2349.99,6.782e-05,2]
[401285709,1768105697122,4699.99,7.399e-05,2]
[401285710,1768105697534,2950.03,8.015e-05,2]
[401285711,1768105697563,4099.95,8.015e-05,2]
[401285714,1768105718406,5900.06,7.3e-05,2]
[401285715,1768105718431,2366.60354517,7.3e-05,2]
[401285716,1768105750467,15416.30354206,0.000121,30]
[401285719,1768105775573,2170.54,6.918e-05,2]
[401285720,1768105775984,4341.08,7.547e-05,2]
[401285721,1768105786998,-264.66431513,8.176e-05,2]
[401285722,1768105789587,-295.81390801,8.176e-05,2]
[401285723,1768105792214,-335.02197347,8.176e-05,2]
[401285724,1768105794677,31056.62972987,0.00011,20]
[401285725,1768105794781,-154.23780499,8.176e-05,2]
[401285726,1768105798034,-364.58141253,8.176e-05,2]
[401285727,1768105799598,-219.87787271,8.176e-05,2]
[401285728,1768105802756,-286.53438863,8.176e-05,2]
[401285729,1768105804856,-184.26073351,8.176e-05,2]
[401285730,1768105806973,-319.35056567,8.176e-05,2]
[401285731,1768105808667,-725.59583089,8.176e-05,2]
[401285733,1768105812496,-167.65623426,8.176e-05,2]
[401285734,1768105816119,-193.16145965,8.176e-05,2]
[401285735,1768105818722,-539.84214112,8.176e-05,2]
[401285736,1768105820552,-332.55268569,8.176e-05,2]
[401285737,1768105822102,-213.65659245,8.176e-05,2]
[401285738,1768105824247,-334.65554086,8.176e-05,2]
[401285739,1768105825641,-435.41858747,8.176e-05,2]
[401285740,1768105826668,28636.08645483,7.964e-05,2]
[401285741,1768105827882,-199.81028461,7.964e-05,2]
[401285742,1768105829375,-168.85366272,7.964e-05,2]
[401285743,1768105831001,-243.03863179,7.964e-05,2]
[401285755,1768105834692,-157.17890079,7.964e-05,2]
[401285756,1768105837149,-280.07401346,7.964e-05,2]
[401285820,1768105840480,-3e-08,7.964e-05,2]
[401285821,1768105840506,-404.7304009,7.964e-05,2]
[401285845,1768105842095,-341.30881533,7.964e-05,2]
[401285851,1768105845737,-412.92885453,7.964e-05,2]
[401285876,1768105846091,-20963.19797861,7.964e-05,2]
[401285877,1768105846101,-1144.73795296,8.176e-05,2]
[401285878,1768105846110,-535.0,8.176e-05,2]
[401285879,1768105846121,-1200.0,8.803e-05,2]
[401285880,1768105846131,-300.0,8.803e-05,2]
[401285881,1768105846142,-300.0,8.803e-05,2]
[401285882,1768105846153,-8682.16,8.804e-05,2]
[401285883,1768105846162,-264.93261284,8.846e-05,2]
[401285884,1768105846171,-500.0,9.003e-05,2]
[401285885,1768105846181,-500.0,9.003e-05,2]
[401285886,1768105846192,-500.0,9.003e-05,2]
[401285887,1768105846202,-500.0,9.003e-05,2]
[401285888,1768105846211,-500.0,9.003e-05,2]
[401285889,1768105846221,-500.0,9.003e-05,2]
[401285890,1768105846234,-151.0,9.003e-05,2]
[401285891,1768105846248,-151.0,9.003e-05,2]
[401285892,1768105846259,-151.0,9.003e-05,2]
[401285893,1768105846277,-151.0,9.003e-05,2]
[401285894,1768105846287,-151.0,9.003e-05,2]
[401285895,1768105846298,-292.0,9.003e-05,2]
[401285896,1768105846307,-203.2787658,9.004e-05,2]
[401285897,1768105846316,-32784.1675069,9.004e-05,2]
[401285898,1768105846326,-323.39571937,9.004e-05,2]
[401285899,1768105846335,-17344.19927396,9.004e-05,2]
[401285900,1768105846345,-45945.76755586,9.004e-05,2]
[401285901,1768105853964,1897.66,6.846e-05,2]
[401285902,1768105862006,-868.73473106,7.468e-05,2]
[401285903,1768105864056,-485.16167104,7.468e-05,2]
[401285904,1768105866160,-314.57897566,7.468e-05,2]
[401285905,1768105867746,-333.03278414,7.468e-05,2]
[401285906,1768105871468,-286.83516312,7.468e-05,2]
[401285907,1768105874668,-284.3906387,7.468e-05,2]
[401285908,1768105878431,-235.14159012,7.468e-05,2]
[401285909,1768105880550,-319.04698472,7.468e-05,2]
[401285910,1768105883923,-197.98311419,7.468e-05,2]
[401285911,1768105885945,-209.65154295,7.468e-05,2]
[401285912,1768105887549,-260.7528043,7.468e-05,2]
[401285913,1768105888726,-349.95663736,8.091e-05,2]
[401285914,1768105894669,-163.45608618,8.091e-05,2]
[401285915,1768105896320,-212.06698349,8.091e-05,2]
[401285916,1768105898504,-449.23066933,8.091e-05,2]
[401285917,1768105901871,-647.19575968,8.091e-05,2]
[401285918,1768105903335,-3871.06386396,8.091e-05,2]
[401285919,1768105918901,-215.72875546,8.402e-05,2]
[401285920,1768105934154,1752.75,7.188e-05,2]
[401285921,1768105934690,3505.49,7.842e-05,2]
[401285922,1768105937028,-4741.77,8.495e-05,2]
[401285923,1768105937139,-516.47,8.495e-05,2]
[401285924,1768105985224,155.0,5.98e-05,2]
[401285925,1768106013422,1618.9,7.112e-05,2]
[401285926,1768106013850,3237.8,7.758e-05,2]
[401285927,1768106014267,3955.37,8.405e-05,2]
[401285928,1768106014296,901.33,8.405e-05,2]
[401285929,1768106017567,-282.825,8.824e-05,2]
[401285930,1768106027599,-179.38563554,8.824e-05,2]
[401285931,1768106027621,-250.0,8.885e-05,2]
[401285932,1768106027643,-161.41310031,9.003e-05,2]
[401285933,1768106030648,-138.58689969,9.003e-05,2]
[401285934,1768106030675,-120.75487326,9.004e-05,2]
[401285935,1768106032817,-428.03925593,9.004e-05,2]
[401285936,1768106035416,-212.60059896,9.004e-05,2]
[401285937,1768106040232,-529.54,9.004e-05,2]
[401285938,1768106040327,-10000.01,9.004e-05,2]
[401285939,1768106040452,-10000.01,9.004e-05,2]
[401285940,1768106040572,-10000.01,9.004e-05,2]
[401285941,1768106047225,-300.0,9.003e-05,2]
[401285942,1768106047260,-9400.01,9.004e-05,2]
[401285943,1768106094656,1495.27,6.862e-05,2]
[401285944,1768106101969,-231.87954565,7.486e-05,2]
[401285945,1768106104702,-284.66777357,7.486e-05,2]
[401285946,1768106106360,-403.89657464,7.486e-05,2]
[401285947,1768106110051,-300.0,7.486e-05,2]
[401285948,1768106111607,-410.85,7.486e-05,2]
[401285949,1768106115484,-455.27849592,7.486e-05,2]
[401285950,1768106118077,-208.23196804,7.486e-05,2]
[401285951,1768106121355,-176.55747533,7.486e-05,2]
[401285952,1768106123786,-205.14083363,7.486e-05,2]
[401285953,1768106126295,-314.04733322,7.486e-05,2]
[401285954,1768106126321,-154.94649835,8.109e-05,2]
[401285955,1768106129044,-153.6883592,8.109e-05,2]
[401285956,1768106131773,-463.40412149,8.109e-05,2]
[401285957,1768106133264,-300.0,8.109e-05,2]
[401285958,1768106134731,-326.60626936,8.109e-05,2]
[401285959,1768106136168,-302.0646316,8.109e-05,2]
[401285960,1768106138247,-155.11869083,8.109e-05,2]
[401285961,1768106140338,-500.0,8.109e-05,2]
[401285962,1768106141834,-363.12976869,8.109e-05,2]
[401285963,1768106144062,-402.2333988,8.109e-05,2]
[401285964,1768106146081,-200.0,8.109e-05,2]
[401285965,1768106150040,-159.22780638,8.109e-05,2]
[401285966,1768106152747,-414.62947799,8.109e-05,2]
[401285967,1768106154369,-305.395364,8.109e-05,2]
[401285968,1768106155807,-257.06635604,8.109e-05,2]
[401285969,1768106174014,1383.49,7.089e-05,2]
[401285970,1768106174445,2766.97,7.734e-05,2]
[401285971,1768106177199,-331.06491163,8.378e-05,2]
[401285972,1768106181628,-584.19918596,8.378e-05,2]
[401285973,1768106184246,-389.26616524,8.378e-05,2]
[401285974,1768106186345,-378.44058564,8.378e-05,2]
[401285975,1768106189114,-284.912,8.378e-05,2]
[401285976,1768106192352,-160.31787126,8.378e-05,2]
[401285977,1768106194897,-221.67868038,8.378e-05,2]
[401285978,1768106197628,-249.27944371,8.378e-05,2]
[401285979,1768106199635,-180.32183878,8.378e-05,2]
[401285980,1768106202244,-341.50000179,8.378e-05,2]
[401285981,1768106204423,-155.96802217,8.378e-05,2]
[401285982,1768106205734,-211.4232998,8.378e-05,2]
[401285983,1768106209382,-185.97107347,8.378e-05,2]
[401285984,1768106213774,-219.18533808,8.378e-05,2]
[401285988,1768106233406,-200.99278381,8.378e-05,2]
[401285989,1768106236533,-55.93879828,8.378e-05,2]
[401285990,1768106236555,-211.41418035,8.555e-05,2]
[401285991,1768106236577,-28.71962504,8.732e-05,2]
[401285992,1768106240437,-247.8309821,8.732e-05,2]
[401285993,1768106243158,-198.33543308,8.732e-05,2]
[401285994,1768106245941,-178.0,8.732e-05,2]
[401285995,1768106247435,-175.8120154,8.732e-05,2]
[401285996,1768106253060,1289.83,7.061e-05,2]
[401285997,1768106253495,2579.67,7.703e-05,2]
[401285998,1768106255340,-500.0,8.345e-05,2]
[401285999,1768106257246,-258.97,8.345e-05,2]
[401286000,1768106259458,-160.77133971,8.345e-05,2]
[401286001,1768106261027,-154.3066349,8.345e-05,2]
[401286002,1768106262548,-479.00513455,8.345e-05,2]
[401286003,1768106264581,-315.73926649,8.345e-05,2]
[401286004,1768106266630,-212.18080398,8.345e-05,2]
[401286005,1768106268189,-210.73383476,8.345e-05,2]
[401286006,1768106269700,-572.70705181,8.345e-05,2]
[401286007,1768106271747,-163.04901972,8.345e-05,2]
[401286008,1768106273934,-285.68175046,8.345e-05,2]
[401286009,1768106276029,-174.38338151,8.345e-05,2]
[401286010,1768106278942,-300.0,8.345e-05,2]
[401286011,1768106281174,-81.97178211,8.345e-05,2]
[401286012,1768106281198,-206.62191573,8.732e-05,2]
[401286013,1768106284176,-157.64250555,8.732e-05,2]
[401286014,1768106284658,428.75,5.994e-05,2]
[401286015,1768106284917,428.75,5.994e-05,2]
[401286016,1768106285395,428.73,5.994e-05,2]
[401286017,1768106336468,1207.38,6.785e-05,2]
[401286018,1768106336874,2414.75,7.402e-05,2]
[401286019,1768106337280,3622.13,8.019e-05,2]
[401286020,1768106342434,-215.04454685,8.636e-05,2]
[401286021,1768106346483,-254.0,8.636e-05,2]
[401286022,1768106348726,-273.13235345,8.636e-05,2]
[401286023,1768106350132,-428.11538093,8.636e-05,2]
[401286024,1768106351638,-217.10891367,8.636e-05,2]
[401286025,1768106353667,-425.43522869,8.636e-05,2]
[401286026,1768106372102,-259.73378036,8.033e-05,2]
[401286027,1768106373568,-181.77,8.033e-05,2]
[401286028,1768106375630,-157.87416908,8.033e-05,2]
[401286029,1768106377771,-162.62594836,8.033e-05,2]
[401286030,1768106380599,-155.04761584,8.033e-05,2]
[401286031,1768106382142,-164.46405627,8.033e-05,2]
[401286032,1768106386495,-159.37405164,8.033e-05,2]
[401286033,1768106389028,-300.0,8.033e-05,2]
[401286034,1768106391132,-249.49,8.033e-05,2]
[401286035,1768106393735,-172.74084344,8.033e-05,2]
[401286036,1768106396456,-154.36641924,8.033e-05,2]
[401286037,1768106399167,-319.81305002,8.033e-05,2]
[401286038,1768106400586,-156.89941992,8.033e-05,2]
[401286039,1768106402498,-284.67294533,8.033e-05,2]
[401286040,1768106406130,-258.54246207,8.033e-05,2]
[401286041,1768106409389,-274.45753793,8.033e-05,2]
[401286042,1768106409410,-293.90217923,8.033e-05,2]
[401286043,1768106410897,-300.0,8.033e-05,2]
[401286044,1768106416438,1129.29,7.612e-05,2]
[401286045,1768106419083,-309.10288287,8.033e-05,2]
[401286046,1768106426421,-203.20803785,8.033e-05,2]
[401286047,1768106428583,-219.37892197,8.033e-05,2]
[401286048,1768106430180,-214.21744863,8.033e-05,2]
[401286049,1768106433792,-174.21371744,8.033e-05,2]
[401286050,1768106436434,-166.74711218,8.033e-05,2]
[401286051,1768106439789,-194.65023604,8.033e-05,2]
[401286052,1768106441320,-331.54572381,8.033e-05,2]
[401286053,1768106495640,1145.64,6.758e-05,2]
[401286054,1768106496088,2291.27,7.372e-05,2]
[401286055,1768106496514,3436.91,7.986e-05,2]
[401286056,1768106551586,1996.9,7.824e-05,2]
[401286057,1768106551611,10000.01,7.824e-05,2]
[401286058,1768106551635,10000.01,7.824e-05,2]
[401286059,1768106551659,10000.01,7.824e-05,2]
[401286060,1768106560269,165.33413,0.0003013,120]
[401286061,1768106565090,-152.59229378,7.824e-05,2]
[401286062,1768106566532,-296.61904294,7.824e-05,2]
[401286063,1768106568605,-168.14582174,7.824e-05,2]
[401286064,1768106570758,-187.12,7.824e-05,2]
[401286065,1768106574016,-191.21228898,7.824e-05,2]
[401286066,1768106575103,1101.03,6.78e-05,2]
[401286067,1768106575600,-225.49453583,7.397e-05,2]
[401286068,1768106577990,-166.27861173,7.397e-05,2]
[401286069,1768106579457,-300.0,7.397e-05,2]
[401286070,1768106581633,-300.0,7.397e-05,2]
[401286071,1768106584305,-374.50546417,7.397e-05,2]
[401286072,1768106589502,-232.31576963,7.397e-05,2]
[401286073,1768106591471,-192.53256099,7.397e-05,2]
[401286074,1768106593067,-391.48525133,7.397e-05,2]
[401286075,1768106655956,1135.15,6.87e-05,2]
[401286076,1768106672288,-485.04899532,7.494e-05,2]
[401286077,1768106674680,-199.95893068,7.494e-05,2]
[401286078,1768106676066,-696.26133404,7.494e-05,2]
[401286079,1768106678639,-263.47424685,7.494e-05,2]
[401286080,1768106681222,-225.87514555,7.494e-05,2]
[401286083,1768106682699,-166.66666668,7.494e-05,2]
[401286087,1768106746994,-497.7971289,7.144e-05,2]
[401286088,1768106749028,-208.18519677,7.144e-05,2]
[401286089,1768106751740,-316.76736443,7.144e-05,2]
[401286090,1768106777385,10000.0,6.823e-05,2]
[401286091,1768106815570,1105.51,6.733e-05,2]
[401286092,1768106821965,-199.96,7.345e-05,2]
[401286093,1768106824644,-409.76373331,7.345e-05,2]
[401286094,1768106827270,-393.18225645,7.345e-05,2]
[401286095,1768106829531,-271.36782558,7.345e-05,2]
[401286096,1768106830446,161.0,8.3e-07,2]
[401286097,1768106832750,-553.02272024,7.345e-05,2]
[401286098,1768106849255,-345.68088783,7.345e-05,2]
[401286099,1768106896402,1077.12,6.723e-05,2]
[401286100,1768106896908,2154.24,7.335e-05,2]
[401286101,1768106945539,-221.53600062,7.583e-05,2]
[401286102,1768106945559,-300.0,7.82e-05,2]
[401286103,1768106945580,-300.0,7.821e-05,2]
[401286104,1768106945604,-178.46399938,7.821e-05,2]
[401286105,1768106947575,-321.53600062,7.821e-05,2]
[401286106,1768106947596,-405.81670383,7.821e-05,2]
[401286107,1768106947617,-272.64729555,7.821e-05,2]
[401286108,1768106947928,-227.35270445,7.821e-05,2]
[401286109,1768106947951,-500.0,7.821e-05,2]
[401286110,1768106947971,-272.64729555,7.821e-05,2]
[401286111,1768106948257,-227.35270445,7.821e-05,2]
[401286112,1768106948278,-500.0,7.821e-05,2]
[401286113,1768106948300,-272.64729555,7.821e-05,2]
[401286114,1768106948680,-227.35270445,7.821e-05,2]
[401286115,1768106948702,-500.0,7.821e-05,2]
[401286116,1768106948725,-272.64729555,7.821e-05,2]
[401286117,1768106949065,-227.35270445,7.821e-05,2]
[401286118,1768106949085,-241.42199112,7.821e-05,2]
[401286119,1768106949106,-500.0,7.821e-05,2]
[401286120,1768106949125,-31.22530443,7.821e-05,2]
[401286121,1768106949435,-468.77469557,7.821e-05,2]
[401286122,1768106949459,-500.0,7.821e-05,2]
[401286123,1768106949480,-31.22530443,7.821e-05,2]
[401286124,1768106949778,-468.77469557,7.821e-05,2]
[401286125,1768106949799,-500.0,7.821e-05,2]
[401286126,1768106949818,-31.22530443,7.821e-05,2]
[401286127,1768106950109,-468.77469557,7.821e-05,2]
[401286128,1768106950131,-500.0,7.821e-05,2]
[401286129,1768106950153,-31.22530443,7.821e-05,2]
[401286130,1768106950442,-468.77469557,7.821e-05,2]
[401286131,1768106950465,-500.0,7.821e-05,2]
[401286132,1768106950489,-31.22530443,7.821e-05,2]
[401286133,1768106950876,-468.77469557,7.821e-05,2]
[401286134,1768106950896,-500.0,7.821e-05,2]
[401286135,1768106950923,-31.22530443,7.821e-05,2]
[401286136,1768106951416,-468.77469557,7.821e-05,2]
[401286137,1768106951439,-500.0,7.821e-05,2]
[401286138,1768106951461,-31.22530443,7.821e-05,2]
[401286139,1768106951840,-468.77469557,7.821e-05,2]
[401286140,1768106951861,-500.0,7.821e-05,2]
[401286141,1768106951883,-31.22530443,7.821e-05,2]
[401286142,1768106952201,-468.77469557,7.821e-05,2]
[401286143,1768106952231,-421.34673015,7.821e-05,2]
[401286144,1768106952258,-109.87857428,7.821e-05,2]
[401286145,1768106952534,-390.12142572,7.821e-05,2]
[401286146,1768106952557,-500.0,7.821e-05,2]
[401286147,1768106952579,-109.87857428,7.821e-05,2]
[401286148,1768106952911,-390.12142572,7.821e-05,2]
[401286149,1768106952935,-500.0,7.821e-05,2]
[401286150,1768106952957,-109.87857428,7.821e-05,2]
[401286151,1768106953249,-390.12142572,7.821e-05,2]
[401286152,1768106953272,-500.0,7.821e-05,2]
[401286153,1768106953296,-109.87857428,7.821e-05,2]
[401286154,1768106953609,-390.12142572,7.821e-05,2]
[401286155,1768106953631,-609.87857428,7.821e-05,2]
[401286156,1768106953931,-12.57574602,7.821e-05,2]
[401286157,1768106953951,-500.0,7.821e-05,2]
[401286158,1768106953972,-487.42425398,7.821e-05,2]
[401286159,1768106954305,-12.57574602,7.821e-05,2]